[Event "Early-Titled-Tuesday-Blitz-August-29-2023"]
[Site "Chess.com"]
[Date "2023.08.29"]
[Round "3"]
[White "HajiyevKanan"]
[Black "Rakhmanov_Aleksandr"]
[Result "1/2-1/2"]
[WhiteElo "2511"]
[BlackElo "2794"]
[TimeControl "180+1"]
[EndTime "8:29:59 PDT"]
[Termination "Game drawn by repetition"]

1. d4 {[%clk 0:03:00.9]} 1... Nf6 {[%clk 0:02:59.8]} 2. Nf3 {[%clk 0:03:01.2]}
2... g6 {[%clk 0:02:59.6]} 3. g3 {[%clk 0:03:01.8]} 3... Bg7 {[%clk 0:02:59.4]}
4. Bg2 {[%clk 0:03:02.7]} 4... d5 {[%clk 0:03:00]} 5. O-O {[%clk 0:03:03.4]}
5... c6 {[%clk 0:03:00.2]} 6. c4 {[%clk 0:03:03.6]} 6... O-O {[%clk 0:03:00.6]}
7. b3 {[%clk 0:03:02.2]} 7... Ne4 {[%clk 0:02:56.9]} 8. Bb2 {[%clk 0:03:02]}
8... Bg4 {[%clk 0:02:56.8]} 9. Nc3 {[%clk 0:02:57.8]} 9... Nxc3 {[%clk
0:02:55.2]} 10. Bxc3 {[%clk 0:02:58.7]} 10... Bxf3 {[%clk 0:02:53.8]} 11. Bxf3
{[%clk 0:02:56]} 11... e6 {[%clk 0:02:54.2]} 12. e3 {[%clk 0:02:56]} 12... Nd7
{[%clk 0:02:53.7]} 13. h4 {[%clk 0:02:56.4]} 13... a5 {[%clk 0:02:52.2]} 14. Kg2
{[%clk 0:02:55.1]} 14... f5 {[%clk 0:02:49.2]} 15. Qd2 {[%clk 0:02:51.6]} 15...
Nf6 {[%clk 0:02:49.1]} 16. b4 {[%clk 0:02:28]} 16... axb4 {[%clk 0:02:43.2]} 17.
Bxb4 {[%clk 0:02:27.5]} 17... Rf7 {[%clk 0:02:43.9]} 18. Rab1 {[%clk 0:02:07]}
18... Ne4 {[%clk 0:02:41.9]} 19. Qc2 {[%clk 0:02:01.4]} 19... Qf6 {[%clk
0:02:23.9]} 20. Rh1 {[%clk 0:01:44]} 20... Bf8 {[%clk 0:02:21.9]} 21. Bxf8
{[%clk 0:01:38.9]} 21... Raxf8 {[%clk 0:02:22.8]} 22. Rb2 {[%clk 0:01:16.6]}
22... Nd6 {[%clk 0:02:19.9]} 23. c5 {[%clk 0:01:11.4]} 23... Ne4 {[%clk
0:02:15.8]} 24. Rhb1 {[%clk 0:01:10.4]} 24... e5 {[%clk 0:02:11.3]} 25. dxe5
{[%clk 0:00:58.6]} 25... Qxe5 {[%clk 0:02:12.2]} 26. Rxb7 {[%clk 0:00:55]} 26...
g5 {[%clk 0:01:56.2]} 27. hxg5 {[%clk 0:00:45.2]} 27... Nxg5 {[%clk 0:01:57.1]}
28. Bh5 {[%clk 0:00:39.9]} 28... Re7 {[%clk 0:01:47]} 29. R1b6 {[%clk
0:00:30.5]} 29... d4 {[%clk 0:01:43]} 30. Qc4+ {[%clk 0:00:22.2]} 30... Kh8
{[%clk 0:01:25.6]} 31. Qxd4 {[%clk 0:00:22.3]} 31... Qxd4 {[%clk 0:01:22]} 32.
exd4 {[%clk 0:00:23.2]} 32... Re4 {[%clk 0:01:17.9]} 33. Rd7 {[%clk 0:00:18.9]}
33... f4 {[%clk 0:01:18]} 34. Bf3 {[%clk 0:00:13.7]} 34... Re1 {[%clk
0:00:58.1]} 35. g4 {[%clk 0:00:13.7]} 35... h5 {[%clk 0:00:55.5]} 36. Bxc6
{[%clk 0:00:04.7]} 36... f3+ {[%clk 0:00:50.8]} 37. Kg3 {[%clk 0:00:02.1]} 37...
Rg1+ {[%clk 0:00:39.5]} 38. Kh4 {[%clk 0:00:02.2]} 38... Nh7 {[%clk 0:00:28.9]}
39. Bxf3 {[%clk 0:00:02]} 39... Rxf3 {[%clk 0:00:23.7]} 40. Rb8+ {[%clk
0:00:02.3]} 40... Nf8 {[%clk 0:00:23.1]} 41. Rdd8 {[%clk 0:00:01.6]} 41... Rxg4+
{[%clk 0:00:16.9]} 42. Kxh5 {[%clk 0:00:01.9]} 42... Rgf4 {[%clk 0:00:10.8]} 43.
Rxf8+ {[%clk 0:00:02.4]} 43... Rxf8 {[%clk 0:00:10.4]} 44. Rb6 {[%clk 0:00:03]}
44... R8f5+ {[%clk 0:00:05.3]} 45. Kg6 {[%clk 0:00:03.5]} 45... R5f4 {[%clk
0:00:05.3]} 46. d5 {[%clk 0:00:04]} 46... Rg4+ {[%clk 0:00:05.5]} 47. Kh5 {[%clk
0:00:04.6]} 47... Rg1 {[%clk 0:00:03.8]} 48. Kh4 {[%clk 0:00:05.2]} 48... Rxf2
{[%clk 0:00:04.1]} 49. Kh3 {[%clk 0:00:05.6]} 49... Rf5 {[%clk 0:00:04.5]} 50.
Rb8+ {[%clk 0:00:05.8]} 50... Kg7 {[%clk 0:00:04.3]} 51. Kh4 {[%clk 0:00:06.7]}
51... Rf2 {[%clk 0:00:03.7]} 52. Rb7+ {[%clk 0:00:07.4]} 52... Kf6 {[%clk
0:00:03.6]} 53. Kh3 {[%clk 0:00:08]} 53... Rf5 {[%clk 0:00:04.3]} 54. Kh4 {[%clk
0:00:07.9]} 54... Rxd5 {[%clk 0:00:04.7]} 55. c6 {[%clk 0:00:07.7]} 55... Rd4+
{[%clk 0:00:04.3]} 56. Kh3 {[%clk 0:00:08]} 56... Rd3+ {[%clk 0:00:04.2]} 57.
Kh2 {[%clk 0:00:08.1]} 57... Rd8 {[%clk 0:00:04.9]} 58. Kxg1 {[%clk 0:00:07.9]}
58... Rc8 {[%clk 0:00:05.3]} 59. c7 {[%clk 0:00:08.4]} 59... Ke6 {[%clk
0:00:05.8]} 60. Kf2 {[%clk 0:00:09]} 60... Kd7 {[%clk 0:00:06.3]} 61. Ke3 {[%clk
0:00:09.7]} 61... Rxc7 {[%clk 0:00:06.8]} 62. Rxc7+ {[%clk 0:00:10.6]} 62...
Kxc7 {[%clk 0:00:07.7]} 63. Kd4 {[%clk 0:00:11.3]} 63... Kb7 {[%clk 0:00:08.6]}
64. Kc4 {[%clk 0:00:12.2]} 64... Ka7 {[%clk 0:00:09.5]} 65. Kb4 {[%clk
0:00:13.1]} 65... Ka8 {[%clk 0:00:10.4]} 66. Ka4 {[%clk 0:00:13.7]} 66... Ka7
{[%clk 0:00:11.3]} 67. Ka5 {[%clk 0:00:14.5]} 67... Ka8 {[%clk 0:00:12.2]} 68.
Ka4 {[%clk 0:00:15.4]} 68... Ka7 {[%clk 0:00:13.1]} 69. Ka5 {[%clk 0:00:16.3]}
69... Ka8 {[%clk 0:00:14]} 70. Ka4 {[%clk 0:00:17.2]} 1/2-1/2

[Event "Early-Titled-Tuesday-Blitz-August-29-2023"]
[Site "Chess.com"]
[Date "2023.08.29"]
[Round "3"]
[White "NovikovaGalina"]
[Black "pankajfm"]
[Result "1-0"]
[WhiteElo "2399"]
[BlackElo "2099"]
[TimeControl "180+1"]
[EndTime "8:29:59 PDT"]
[Termination "NovikovaGalina won by checkmate"]

1. e4 {[%clk 0:02:59.9]} 1... c5 {[%clk 0:02:51.5]} 2. Nf3 {[%clk 0:03:00.3]}
2... Nc6 {[%clk 0:02:51.8]} 3. d4 {[%clk 0:03:00.9]} 3... cxd4 {[%clk
0:02:52.7]} 4. Nxd4 {[%clk 0:03:00.8]} 4... Nf6 {[%clk 0:02:53.3]} 5. Nc3 {[%clk
0:03:00.5]} 5... e5 {[%clk 0:02:53.4]} 6. Ndb5 {[%clk 0:03:01.2]} 6... d6 {[%clk
0:02:53.7]} 7. Bg5 {[%clk 0:03:01.8]} 7... a6 {[%clk 0:02:53.5]} 8. Na3 {[%clk
0:03:02.7]} 8... b5 {[%clk 0:02:53]} 9. Bxf6 {[%clk 0:03:03.3]} 9... gxf6 {[%clk
0:02:52.8]} 10. Nd5 {[%clk 0:03:03.9]} 10... f5 {[%clk 0:02:53]} 11. g3 {[%clk
0:03:04.8]} 11... Be6 {[%clk 0:02:50.5]} 12. Bg2 {[%clk 0:03:05.2]} 12... Bxd5
{[%clk 0:02:44.8]} 13. Qxd5 {[%clk 0:03:02.6]} 13... Ne7 {[%clk 0:02:39.3]} 14.
Qd2 {[%clk 0:02:58.6]} 14... Rc8 {[%clk 0:02:29.3]} 15. c3 {[%clk 0:02:56.3]}
15... h5 {[%clk 0:02:26]} 16. O-O {[%clk 0:02:55.1]} 16... Bh6 {[%clk
0:02:26.2]} 17. Qd3 {[%clk 0:02:54.5]} 17... f4 {[%clk 0:02:23.1]} 18. Nc2
{[%clk 0:02:54.1]} 18... h4 {[%clk 0:02:17.9]} 19. Rad1 {[%clk 0:02:52.8]} 19...
Rc6 {[%clk 0:02:07.7]} 20. Nb4 {[%clk 0:02:51.6]} 20... Rb6 {[%clk 0:02:07.2]}
21. Nd5 {[%clk 0:02:16.2]} 21... Nxd5 {[%clk 0:02:05.5]} 22. exd5 {[%clk
0:02:11.5]} 22... Qf6 {[%clk 0:01:13.9]} 23. Rde1 {[%clk 0:02:00.8]} 23... Kd7
{[%clk 0:01:05.7]} 24. Re4 {[%clk 0:01:42.6]} 24... Bg5 {[%clk 0:00:55.8]} 25.
a4 {[%clk 0:01:41.4]} 25... Qh6 {[%clk 0:00:49.7]} 26. h3 {[%clk 0:01:25.6]}
26... hxg3 {[%clk 0:00:43.4]} 27. fxg3 {[%clk 0:01:25.4]} 27... f5 {[%clk
0:00:30.7]} 28. Rb4 {[%clk 0:01:18.8]} 28... e4 {[%clk 0:00:30.5]} 29. Qd4
{[%clk 0:01:18.3]} 29... Rb7 {[%clk 0:00:20.5]} 30. gxf4 {[%clk 0:01:11.6]}
30... Bxf4 {[%clk 0:00:19.8]} 31. Rxf4 {[%clk 0:01:10.6]} 31... Qxf4 {[%clk
0:00:20]} 32. Qxh8 {[%clk 0:01:10.8]} 32... Qc1+ {[%clk 0:00:19.5]} 33. Kh2
{[%clk 0:01:10.8]} 33... Qf4+ {[%clk 0:00:19.3]} 34. Kg1 {[%clk 0:01:11]} 34...
Qc1+ {[%clk 0:00:19.7]} 35. Kf2 {[%clk 0:01:09.2]} 35... Qd2+ {[%clk 0:00:19.5]}
36. Kg3 {[%clk 0:01:06.8]} 36... Qe3+ {[%clk 0:00:19.2]} 37. Kh4 {[%clk
0:00:59.9]} 37... Qf2+ {[%clk 0:00:08.5]} 38. Kh5 {[%clk 0:01:00.3]} 38... Qe2+
{[%clk 0:00:07.4]} 39. Kh6 {[%clk 0:00:57.6]} 39... Qe3+ {[%clk 0:00:07.1]} 40.
Kg7 {[%clk 0:00:54.3]} 40... Qg3+ {[%clk 0:00:06.7]} 41. Kf6 {[%clk 0:00:55.2]}
41... Qxg2 {[%clk 0:00:02.5]} 42. Kxf5 {[%clk 0:00:41.3]} 42... Qf3+ {[%clk
0:00:02.2]} 43. Kg5 {[%clk 0:00:40.4]} 43... Qg3+ {[%clk 0:00:02.3]} 44. Kf5
{[%clk 0:00:38.4]} 44... Qe5+ {[%clk 0:00:02.8]} 45. Qxe5 {[%clk 0:00:37.6]}
45... dxe5 {[%clk 0:00:03.7]} 46. Kxe5 {[%clk 0:00:38.5]} 46... Rb8 {[%clk
0:00:03.7]} 47. Kxe4 {[%clk 0:00:37.5]} 47... Rh8 {[%clk 0:00:02.8]} 48. axb5
{[%clk 0:00:36.2]} 48... a5 {[%clk 0:00:02.9]} 49. Rd4 {[%clk 0:00:30.4]} 49...
Rxh3 {[%clk 0:00:03.4]} 50. Ke5 {[%clk 0:00:23.7]} 50... Rh2 {[%clk 0:00:03.2]}
51. b3 {[%clk 0:00:21]} 51... Rb2 {[%clk 0:00:03]} 52. Ra4 {[%clk 0:00:21.5]}
52... Rxb3 {[%clk 0:00:03]} 53. Kd4 {[%clk 0:00:20.2]} 53... Kc7 {[%clk
0:00:01.3]} 54. Rxa5 {[%clk 0:00:20.3]} 54... Kb6 {[%clk 0:00:02]} 55. Ra8
{[%clk 0:00:20.3]} 55... Kxb5 {[%clk 0:00:01.6]} 56. Rb8+ {[%clk 0:00:20.7]}
56... Ka4 {[%clk 0:00:02.5]} 57. Rxb3 {[%clk 0:00:21.2]} 57... Kxb3 {[%clk
0:00:03.4]} 58. d6 {[%clk 0:00:22.1]} 58... Ka2 {[%clk 0:00:04.3]} 59. d7 {[%clk
0:00:23]} 59... Kb1 {[%clk 0:00:05.2]} 60. c4 {[%clk 0:00:23.2]} 60... Ka2
{[%clk 0:00:06.1]} 61. c5 {[%clk 0:00:24]} 61... Kb1 {[%clk 0:00:07]} 62. c6
{[%clk 0:00:24.9]} 62... Ka2 {[%clk 0:00:07.9]} 63. c7 {[%clk 0:00:25.8]} 63...
Kb1 {[%clk 0:00:08.8]} 64. d8=Q {[%clk 0:00:24.9]} 64... Ka2 {[%clk 0:00:09.7]}
65. c8=Q {[%clk 0:00:23.9]} 65... Kb2 {[%clk 0:00:10.6]} 66. Qdc7 {[%clk
0:00:23.8]} 66... Kb1 {[%clk 0:00:10.5]} 67. Q7b7+ {[%clk 0:00:23.2]} 67... Ka2
{[%clk 0:00:10.7]} 68. Qca8# {[%clk 0:00:23.9]} 1-0

[Event "Early-Titled-Tuesday-Blitz-August-29-2023"]
[Site "Chess.com"]
[Date "2023.08.29"]
[Round "3"]
[White "Barbus89"]
[Black "zozik"]
[Result "1-0"]
[WhiteElo "2506"]
[BlackElo "2371"]
[TimeControl "180+1"]
[EndTime "8:30:01 PDT"]
[Termination "Barbus89 won on time"]

1. Nf3 {[%clk 0:03:00]} 1... d5 {[%clk 0:02:58.9]} 2. g3 {[%clk 0:02:59.9]} 2...
e6 {[%clk 0:02:57.8]} 3. Bg2 {[%clk 0:02:59.5]} 3... c5 {[%clk 0:02:58.5]} 4.
O-O {[%clk 0:02:59.5]} 4... Nc6 {[%clk 0:02:59.1]} 5. d4 {[%clk 0:03:00.1]} 5...
Nf6 {[%clk 0:02:59.6]} 6. c4 {[%clk 0:02:59.9]} 6... Be7 {[%clk 0:02:59.7]} 7.
Nc3 {[%clk 0:02:59.7]} 7... O-O {[%clk 0:02:59.3]} 8. cxd5 {[%clk 0:02:58.7]}
8... exd5 {[%clk 0:02:59.1]} 9. Bg5 {[%clk 0:02:55]} 9... c4 {[%clk 0:02:58.5]}
10. Rc1 {[%clk 0:02:23]} 10... h6 {[%clk 0:02:49.2]} 11. Bxf6 {[%clk 0:02:14.3]}
11... Bxf6 {[%clk 0:02:50.1]} 12. b3 {[%clk 0:02:12.3]} 12... cxb3 {[%clk
0:02:48.8]} 13. Qxb3 {[%clk 0:02:07.8]} 13... Bxd4 {[%clk 0:02:42.1]} 14. Nxd5
{[%clk 0:01:16.7]} 14... Be6 {[%clk 0:02:39.3]} 15. e4 {[%clk 0:01:16.6]} 15...
Bb6 {[%clk 0:02:31.7]} 16. Rfd1 {[%clk 0:01:11.5]} 16... Rc8 {[%clk 0:02:24.6]}
17. Qa3 {[%clk 0:00:57.9]} 17... Bxd5 {[%clk 0:02:19.6]} 18. Rxd5 {[%clk
0:00:56.7]} 18... Qe7 {[%clk 0:02:09.3]} 19. Qxe7 {[%clk 0:00:55.7]} 19... Nxe7
{[%clk 0:02:10.2]} 20. Rdd1 {[%clk 0:00:37.1]} 20... Rfd8 {[%clk 0:02:04.5]} 21.
Rxd8+ {[%clk 0:00:36.6]} 21... Rxd8 {[%clk 0:02:02.8]} 22. Bf1 {[%clk
0:00:29.2]} 22... g5 {[%clk 0:02:00.1]} 23. h3 {[%clk 0:00:28.3]} 23... Rc8
{[%clk 0:01:52]} 24. Rxc8+ {[%clk 0:00:25.9]} 24... Nxc8 {[%clk 0:01:52.9]} 25.
Bc4 {[%clk 0:00:25.6]} 25... Nd6 {[%clk 0:01:52.7]} 26. Bd5 {[%clk 0:00:25.4]}
26... Kg7 {[%clk 0:01:38.4]} 27. a4 {[%clk 0:00:21.9]} 27... f6 {[%clk
0:01:34.1]} 28. Nd2 {[%clk 0:00:14.3]} 28... Bd4 {[%clk 0:01:28.5]} 29. Nb3
{[%clk 0:00:14.4]} 29... Bb6 {[%clk 0:01:27.3]} 30. Kg2 {[%clk 0:00:13.7]} 30...
h5 {[%clk 0:01:22.8]} 31. f4 {[%clk 0:00:13.9]} 31... Bc7 {[%clk 0:01:15.9]} 32.
Kf3 {[%clk 0:00:09.3]} 32... b6 {[%clk 0:01:13.2]} 33. Nd4 {[%clk 0:00:10.2]}
33... Bb8 {[%clk 0:00:59]} 34. Nc6 {[%clk 0:00:09.4]} 34... Bc7 {[%clk
0:00:59.1]} 35. Nxa7 {[%clk 0:00:09.6]} 35... Kf8 {[%clk 0:00:58.4]} 36. Nc6
{[%clk 0:00:08.9]} 36... Ke8 {[%clk 0:00:56.2]} 37. e5 {[%clk 0:00:09.5]} 37...
fxe5 {[%clk 0:00:54.5]} 38. fxe5 {[%clk 0:00:10.4]} 38... Nf7 {[%clk 0:00:49.5]}
39. Ke4 {[%clk 0:00:07.7]} 39... Nh6 {[%clk 0:00:43.6]} 40. Be6 {[%clk
0:00:06.6]} 40... h4 {[%clk 0:00:39.1]} 41. g4 {[%clk 0:00:06.3]} 41... Kf8
{[%clk 0:00:36.2]} 42. Kd5 {[%clk 0:00:05.4]} 42... Ke8 {[%clk 0:00:35.4]} 43.
Nd4 {[%clk 0:00:05.7]} 43... Bd8 {[%clk 0:00:30.4]} 44. Nb5 {[%clk 0:00:05.9]}
44... Nf7 {[%clk 0:00:29.1]} 45. Bxf7+ {[%clk 0:00:06.4]} 45... Kxf7 {[%clk
0:00:30]} 46. Kd6 {[%clk 0:00:06.5]} 46... Be7+ {[%clk 0:00:29.1]} 47. Kd7
{[%clk 0:00:07.3]} 47... Bb4 {[%clk 0:00:28]} 48. e6+ {[%clk 0:00:07.6]} 48...
Kf6 {[%clk 0:00:28.5]} 49. Nd6 {[%clk 0:00:06.6]} 49... Bc5 {[%clk 0:00:27]} 50.
e7 {[%clk 0:00:05.4]} 50... Bxd6 {[%clk 0:00:26.9]} 51. Kxd6 {[%clk 0:00:06.3]}
51... Kf7 {[%clk 0:00:27.8]} 52. Kd7 {[%clk 0:00:06.5]} 52... b5 {[%clk
0:00:28.7]} 53. e8=Q+ {[%clk 0:00:07.1]} 1-0

[Event "Early-Titled-Tuesday-Blitz-August-29-2023"]
[Site "Chess.com"]
[Date "2023.08.29"]
[Round "3"]
[White "GalaxyRoman"]
[Black "ViIIagra"]
[Result "0-1"]
[WhiteElo "2726"]
[BlackElo "2938"]
[TimeControl "180+1"]
[EndTime "8:30:02 PDT"]
[Termination "ViIIagra won on time"]

1. e4 {[%clk 0:03:00.9]} 1... c6 {[%clk 0:02:53.7]} 2. Nc3 {[%clk 0:02:56.5]}
2... d5 {[%clk 0:02:54.1]} 3. Nf3 {[%clk 0:02:57.1]} 3... Bg4 {[%clk 0:02:50.5]}
4. h3 {[%clk 0:02:56.7]} 4... Bh5 {[%clk 0:02:50.6]} 5. Be2 {[%clk 0:02:53.3]}
5... e6 {[%clk 0:02:49.9]} 6. d4 {[%clk 0:02:51.5]} 6... Nf6 {[%clk 0:02:48]} 7.
e5 {[%clk 0:02:50.4]} 7... Nfd7 {[%clk 0:02:48.3]} 8. O-O {[%clk 0:02:51]} 8...
Be7 {[%clk 0:02:47.8]} 9. Nb1 {[%clk 0:02:49.6]} 9... Bg6 {[%clk 0:02:46.8]} 10.
Be3 {[%clk 0:02:48.8]} 10... c5 {[%clk 0:02:46.8]} 11. c3 {[%clk 0:02:47.6]}
11... Nc6 {[%clk 0:02:46.9]} 12. Nbd2 {[%clk 0:02:47.2]} 12... O-O {[%clk
0:02:46]} 13. a4 {[%clk 0:02:43.4]} 13... f6 {[%clk 0:02:46]} 14. exf6 {[%clk
0:02:40.7]} 14... Bxf6 {[%clk 0:02:46.9]} 15. Re1 {[%clk 0:02:36.9]} 15... Kh8
{[%clk 0:02:46.1]} 16. Nf1 {[%clk 0:02:33.1]} 16... c4 {[%clk 0:02:22.9]} 17.
Ng3 {[%clk 0:02:29.1]} 17... Qc7 {[%clk 0:02:22.3]} 18. Qd2 {[%clk 0:02:22.7]}
18... Rad8 {[%clk 0:02:16.5]} 19. Bg5 {[%clk 0:02:11.1]} 19... Qd6 {[%clk
0:02:08.7]} 20. Nh4 {[%clk 0:01:59.3]} 20... e5 {[%clk 0:01:45.8]} 21. Nxg6+
{[%clk 0:01:38.3]} 21... hxg6 {[%clk 0:01:46.7]} 22. dxe5 {[%clk 0:01:25.9]}
22... Ndxe5 {[%clk 0:01:44.9]} 23. Bf4 {[%clk 0:01:17.4]} 23... Bh4 {[%clk
0:01:34.2]} 24. Kh1 {[%clk 0:01:10.3]} 24... Qf6 {[%clk 0:01:30.6]} 25. Be3
{[%clk 0:01:03]} 25... Rd7 {[%clk 0:01:04.3]} 26. Rf1 {[%clk 0:00:55.3]} 26...
Rfd8 {[%clk 0:01:04.1]} 27. Bd4 {[%clk 0:00:46.5]} 27... Nxd4 {[%clk 0:00:54.1]}
28. Qxd4 {[%clk 0:00:36]} 28... Nc6 {[%clk 0:00:54.3]} 29. Qg4 {[%clk 0:00:32]}
29... Re7 {[%clk 0:00:29.9]} 30. Rae1 {[%clk 0:00:18.3]} 30... Rde8 {[%clk
0:00:29.9]} 31. Kh2 {[%clk 0:00:03.9]} 31... d4 {[%clk 0:00:30]} 32. cxd4 {[%clk
0:00:02.2]} 32... Nxd4 {[%clk 0:00:30]} 33. Bxc4 {[%clk 0:00:02]} 33... Rxe1
{[%clk 0:00:27]} 34. Rxe1 {[%clk 0:00:02.4]} 34... Rxe1 {[%clk 0:00:27.8]} 35.
Qc8+ {[%clk 0:00:01.5]} 35... Qd8 {[%clk 0:00:28.4]} 36. Qg4 {[%clk 0:00:01.8]}
36... Bxg3+ {[%clk 0:00:16.7]} 37. fxg3 {[%clk 0:00:02.7]} 37... Nf5 {[%clk
0:00:16.7]} 38. h4 {[%clk 0:00:02.4]} 38... Nh6 {[%clk 0:00:16.8]} 39. Qxg6
{[%clk 0:00:02.2]} 39... Re8 {[%clk 0:00:11.5]} 40. Bd3 {[%clk 0:00:02.1]} 40...
Kg8 {[%clk 0:00:09.2]} 41. Qh7+ {[%clk 0:00:01.9]} 41... Kf8 {[%clk 0:00:09.4]}
42. Qh8+ {[%clk 0:00:01.2]} 42... Kf7 {[%clk 0:00:09.6]} 43. Qh7 {[%clk
0:00:02.1]} 43... Qf6 {[%clk 0:00:06.7]} 44. Bc4+ {[%clk 0:00:02.1]} 44... Kf8
{[%clk 0:00:06.9]} 45. Qh8+ {[%clk 0:00:02.1]} 45... Ke7 {[%clk 0:00:07.2]} 46.
Qh7 {[%clk 0:00:03]} 46... Ng4+ {[%clk 0:00:07.8]} 47. Kh3 {[%clk 0:00:03.2]}
47... Ne5 {[%clk 0:00:08.6]} 48. Qe4 {[%clk 0:00:02.9]} 48... Kf8 {[%clk
0:00:08.4]} 49. Bb3 {[%clk 0:00:01.5]} 49... Nc6 {[%clk 0:00:08.8]} 50. Qg4
{[%clk 0:00:01.5]} 50... Nd4 {[%clk 0:00:08.8]} 51. Qh5 {[%clk 0:00:01.4]} 51...
Nxb3 {[%clk 0:00:07.9]} 52. Qh8+ {[%clk 0:00:02.1]} 52... Kf7 {[%clk 0:00:08.2]}
53. Qh5+ {[%clk 0:00:03]} 53... Kf8 {[%clk 0:00:08.7]} 54. Qh8+ {[%clk
0:00:03.1]} 54... Ke7 {[%clk 0:00:09.4]} 55. Qh5 {[%clk 0:00:04]} 55... Nd4
{[%clk 0:00:10.2]} 56. Kh2 {[%clk 0:00:04.3]} 56... Ne6 {[%clk 0:00:10.2]} 57.
Qe2 {[%clk 0:00:04.5]} 57... Rd8 {[%clk 0:00:10.6]} 58. Qb5 {[%clk 0:00:04.9]}
58... Rd7 {[%clk 0:00:11.5]} 59. Qb4+ {[%clk 0:00:05.3]} 59... Kf7 {[%clk
0:00:11.9]} 60. Qb3 {[%clk 0:00:05.3]} 60... Re7 {[%clk 0:00:12.8]} 61. Qb4
{[%clk 0:00:05.3]} 61... a6 {[%clk 0:00:13.7]} 62. Qb3 {[%clk 0:00:06]} 62...
Kf8 {[%clk 0:00:14.1]} 63. a5 {[%clk 0:00:06.6]} 63... Qe5 {[%clk 0:00:14.5]}
64. Qb4 {[%clk 0:00:07]} 64... Nd4 {[%clk 0:00:14.7]} 65. Qc4 {[%clk 0:00:04.9]}
65... Ne2 {[%clk 0:00:14.9]} 66. Qc8+ {[%clk 0:00:04.9]} 66... Kf7 {[%clk
0:00:15.7]} 67. Qc4+ {[%clk 0:00:05.3]} 67... Kf6 {[%clk 0:00:15.7]} 68. Kh1
{[%clk 0:00:02.7]} 68... Qxg3 {[%clk 0:00:16]} 0-1

[Event "Early-Titled-Tuesday-Blitz-August-29-2023"]
[Site "Chess.com"]
[Date "2023.08.29"]
[Round "3"]
[White "platy3"]
[Black "Fighterman91"]
[Result "1/2-1/2"]
[WhiteElo "2932"]
[BlackElo "2740"]
[TimeControl "180+1"]
[EndTime "8:30:07 PDT"]
[Termination "Game drawn by repetition"]

1. e4 {[%clk 0:03:00.9]} 1... e5 {[%clk 0:02:57.3]} 2. Nf3 {[%clk 0:03:01.1]}
2... Nc6 {[%clk 0:02:57.9]} 3. Bb5 {[%clk 0:03:01.7]} 3... Nf6 {[%clk
0:02:58.5]} 4. d3 {[%clk 0:03:01.1]} 4... Bc5 {[%clk 0:02:58]} 5. O-O {[%clk
0:03:01.5]} 5... Nd4 {[%clk 0:02:57.5]} 6. Nxd4 {[%clk 0:03:01.8]} 6... Bxd4
{[%clk 0:02:58.3]} 7. Nd2 {[%clk 0:03:02.5]} 7... c6 {[%clk 0:02:54.8]} 8. Ba4
{[%clk 0:03:02.6]} 8... d6 {[%clk 0:02:53.4]} 9. c3 {[%clk 0:03:02.8]} 9... Bb6
{[%clk 0:02:52.7]} 10. Nc4 {[%clk 0:03:03.5]} 10... Bc7 {[%clk 0:02:48.8]} 11.
Bb3 {[%clk 0:03:03.6]} 11... Bg4 {[%clk 0:02:29.9]} 12. Qe1 {[%clk 0:02:55.3]}
12... O-O {[%clk 0:02:21.2]} 13. f4 {[%clk 0:02:45.7]} 13... exf4 {[%clk
0:02:18.2]} 14. Bxf4 {[%clk 0:02:46.6]} 14... d5 {[%clk 0:02:18.8]} 15. Bxc7
{[%clk 0:02:46.9]} 15... Qxc7 {[%clk 0:02:18.8]} 16. Ne3 {[%clk 0:02:47.7]}
16... Be6 {[%clk 0:02:13.9]} 17. exd5 {[%clk 0:02:12.4]} 17... Nxd5 {[%clk
0:02:05.9]} 18. Bxd5 {[%clk 0:02:11.9]} 18... cxd5 {[%clk 0:02:04.4]} 19. d4
{[%clk 0:01:50.5]} 19... b5 {[%clk 0:02:03.4]} 20. Qd2 {[%clk 0:01:41.5]} 20...
a5 {[%clk 0:01:58.5]} 21. Nf5 {[%clk 0:01:40]} 21... f6 {[%clk 0:01:42.9]} 22.
Rae1 {[%clk 0:01:37.6]} 22... Rfe8 {[%clk 0:01:34.8]} 23. Ne3 {[%clk 0:01:27.3]}
23... b4 {[%clk 0:01:15.5]} 24. Rc1 {[%clk 0:01:21.3]} 24... Qb6 {[%clk
0:01:06.3]} 25. Rfe1 {[%clk 0:01:21.3]} 25... Reb8 {[%clk 0:00:47.6]} 26. h3
{[%clk 0:01:19.2]} 26... bxc3 {[%clk 0:00:47.9]} 27. bxc3 {[%clk 0:01:19]} 27...
a4 {[%clk 0:00:40]} 28. Qf2 {[%clk 0:01:16.7]} 28... Qd6 {[%clk 0:00:35.5]} 29.
Rc2 {[%clk 0:01:12.1]} 29... a3 {[%clk 0:00:33.7]} 30. Rce2 {[%clk 0:01:03.4]}
30... Re8 {[%clk 0:00:16.9]} 31. Nf5 {[%clk 0:01:02.3]} 31... Qd7 {[%clk
0:00:17.4]} 32. Ng3 {[%clk 0:00:57.3]} 32... Bf7 {[%clk 0:00:15.4]} 33. Nf5
{[%clk 0:00:48.7]} 33... Be6 {[%clk 0:00:12]} 34. Ne3 {[%clk 0:00:36.2]} 34...
Bf7 {[%clk 0:00:11.3]} 35. Nc2 {[%clk 0:00:34.6]} 35... Rxe2 {[%clk 0:00:09.4]}
36. Rxe2 {[%clk 0:00:35.5]} 36... Qc7 {[%clk 0:00:08.5]} 37. Qe1 {[%clk
0:00:34.5]} 37... Rc8 {[%clk 0:00:06.6]} 38. Re3 {[%clk 0:00:32.8]} 38... Qc4
{[%clk 0:00:07.3]} 39. Nb4 {[%clk 0:00:32.5]} 39... h6 {[%clk 0:00:05.9]} 40.
Qd2 {[%clk 0:00:22.7]} 40... Bg6 {[%clk 0:00:06.2]} 41. Rg3 {[%clk 0:00:21.4]}
41... Kh7 {[%clk 0:00:05.7]} 42. Kh2 {[%clk 0:00:20.8]} 42... Be4 {[%clk
0:00:06.2]} 43. Qf4 {[%clk 0:00:17.8]} 43... Qc7 {[%clk 0:00:05.5]} 44. Qg4
{[%clk 0:00:13.8]} 44... Rd8 {[%clk 0:00:03.7]} 45. Nc6 {[%clk 0:00:10.8]} 45...
Re8 {[%clk 0:00:03.3]} 46. Nb4 {[%clk 0:00:04.4]} 46... Qf7 {[%clk 0:00:03.8]}
47. Qf4 {[%clk 0:00:03.2]} 47... Rc8 {[%clk 0:00:03.5]} 48. Re3 {[%clk
0:00:02.3]} 48... Qc7 {[%clk 0:00:03.4]} 49. Qxc7 {[%clk 0:00:02]} 49... Rxc7
{[%clk 0:00:03.6]} 50. g4 {[%clk 0:00:02.2]} 50... g6 {[%clk 0:00:03.2]} 51. Kg3
{[%clk 0:00:02.9]} 51... g5 {[%clk 0:00:03.8]} 52. h4 {[%clk 0:00:03.3]} 52...
Kg6 {[%clk 0:00:04.2]} 53. hxg5 {[%clk 0:00:03.9]} 53... hxg5 {[%clk 0:00:05.1]}
54. Kf2 {[%clk 0:00:03.3]} 54... f5 {[%clk 0:00:05.2]} 55. gxf5+ {[%clk
0:00:03.4]} 55... Kxf5 {[%clk 0:00:06.1]} 56. Kg3 {[%clk 0:00:04.1]} 56... Rh7
{[%clk 0:00:05.4]} 57. Re1 {[%clk 0:00:04.2]} 57... g4 {[%clk 0:00:05.4]} 58.
Rf1+ {[%clk 0:00:04.2]} 58... Kg5 {[%clk 0:00:06.1]} 59. Rf8 {[%clk 0:00:02.2]}
59... Rh3+ {[%clk 0:00:06.7]} 60. Kf2 {[%clk 0:00:03]} 60... Rxc3 {[%clk
0:00:07.2]} 61. Rg8+ {[%clk 0:00:02.9]} 61... Kh4 {[%clk 0:00:07.5]} 62. Rh8+
{[%clk 0:00:03]} 62... Kg5 {[%clk 0:00:08.2]} 63. Rg8+ {[%clk 0:00:03.7]} 63...
Kf4 {[%clk 0:00:08.8]} 64. Rf8+ {[%clk 0:00:04.3]} 64... Kg5 {[%clk 0:00:08.2]}
65. Rg8+ {[%clk 0:00:04.9]} 1/2-1/2